[Event "Late-Titled-Tuesday-Blitz-December-26-2023"]
[Site "Chess.com"]
[Date "2023.12.26"]
[Round "2"]
[White "Onthequiet"]
[Black "Vaporwaffle94"]
[Result "1-0"]
[WhiteElo "2422"]
[BlackElo "2034"]
[TimeControl "180+1"]
[EndTime "14:18:25 PST"]
[Termination "Onthequiet won on time"]

1. d4 {[%clk 0:02:53.4]} 1... Nf6 {[%clk 0:02:59.9]} 2. Nf3 {[%clk 0:02:53.2]}
2... e6 {[%clk 0:03:00]} 3. c4 {[%clk 0:02:51.7]} 3... b6 {[%clk 0:03:00]} 4.
Nc3 {[%clk 0:02:50.9]} 4... Bb7 {[%clk 0:02:59.8]} 5. Bg5 {[%clk 0:02:50.8]}
5... h6 {[%clk 0:02:58.5]} 6. Bxf6 {[%clk 0:02:49.9]} 6... Qxf6 {[%clk
0:02:58.1]} 7. g3 {[%clk 0:02:48.4]} 7... Bb4 {[%clk 0:02:57.8]} 8. Bg2 {[%clk
0:02:47.6]} 8... O-O {[%clk 0:02:57.8]} 9. O-O {[%clk 0:02:47.4]} 9... d6 {[%clk
0:02:56.8]} 10. Nh4 {[%clk 0:02:46.6]} 10... Bxg2 {[%clk 0:02:55.3]} 11. Nxg2
{[%clk 0:02:47]} 11... Bxc3 {[%clk 0:02:55.6]} 12. bxc3 {[%clk 0:02:46]} 12...
c5 {[%clk 0:02:55.9]} 13. Qd3 {[%clk 0:02:44.7]} 13... Nc6 {[%clk 0:02:55.3]}
14. e3 {[%clk 0:02:36.1]} 14... Rac8 {[%clk 0:02:54.7]} 15. Nf4 {[%clk
0:02:25.9]} 15... Na5 {[%clk 0:02:46.7]} 16. d5 {[%clk 0:02:20.8]} 16... e5
{[%clk 0:02:46.5]} 17. Ne2 {[%clk 0:02:13.5]} 17... Qg6 {[%clk 0:02:37.5]} 18.
e4 {[%clk 0:02:12.2]} 18... f5 {[%clk 0:02:37.4]} 19. f3 {[%clk 0:02:11.5]}
19... fxe4 {[%clk 0:02:37.4]} 20. fxe4 {[%clk 0:02:11.2]} 20... Rxf1+ {[%clk
0:02:37.4]} 21. Rxf1 {[%clk 0:02:09.4]} 21... Rf8 {[%clk 0:02:37.7]} 22. Rxf8+
{[%clk 0:02:08.9]} 22... Kxf8 {[%clk 0:02:37.8]} 23. Kg2 {[%clk 0:02:07.7]}
23... Ke7 {[%clk 0:02:35.7]} 24. Nc1 {[%clk 0:02:04.2]} 24... Qg5 {[%clk
0:02:23.1]} 25. Nb3 {[%clk 0:02:01]} 25... Nxb3 {[%clk 0:02:23.2]} 26. axb3
{[%clk 0:02:01.1]} 26... Qc1 {[%clk 0:02:23.7]} 27. Qf3 {[%clk 0:01:58.9]} 27...
Qb2+ {[%clk 0:02:21.4]} 28. Kh3 {[%clk 0:01:59.3]} 28... Qxb3 {[%clk 0:02:21.4]}
29. Qf5 {[%clk 0:01:59.1]} 29... Qxc4 {[%clk 0:01:59.5]} 30. Qe6+ {[%clk
0:01:58.6]} 30... Kf8 {[%clk 0:01:59.8]} 31. Qxd6+ {[%clk 0:01:58.6]} 31... Kg8
{[%clk 0:02:00.1]} 32. Qxe5 {[%clk 0:01:58.7]} 32... Qf1+ {[%clk 0:01:57.1]} 33.
Kg4 {[%clk 0:01:50.3]} 33... Qe2+ {[%clk 0:01:56.1]} 34. Kf5 {[%clk 0:01:41.4]}
34... Qh5+ {[%clk 0:01:42]} 35. Ke6 {[%clk 0:01:41.2]} 35... Qe8+ {[%clk
0:01:27.6]} 36. Kd6 {[%clk 0:01:40.5]} 36... Qb8+ {[%clk 0:01:21.9]} 37. Ke6
{[%clk 0:01:38.1]} 37... Qc8+ {[%clk 0:00:58]} 38. Kd6 {[%clk 0:01:37.6]} 38...
Qb8+ {[%clk 0:00:54.6]} 39. Ke6 {[%clk 0:01:35.8]} 39... Qxe5+ {[%clk
0:00:17.7]} 40. Kxe5 {[%clk 0:01:35]} 40... Kf7 {[%clk 0:00:17.8]} 41. Kd6
{[%clk 0:01:34.6]} 41... a5 {[%clk 0:00:18.1]} 42. Kc7 {[%clk 0:01:33.4]} 42...
a4 {[%clk 0:00:18.1]} 43. d6 {[%clk 0:01:34]} 43... a3 {[%clk 0:00:17.4]} 44. d7
{[%clk 0:01:34.6]} 44... a2 {[%clk 0:00:17.6]} 45. d8=Q {[%clk 0:01:34.6]} 45...
a1=Q {[%clk 0:00:17.6]} 46. Qd5+ {[%clk 0:01:28.2]} 46... Kf6 {[%clk 0:00:14.3]}
47. e5+ {[%clk 0:01:24.4]} 47... Kg6 {[%clk 0:00:14]} 48. Qd3+ {[%clk
0:01:14.9]} 48... Kf7 {[%clk 0:00:13.4]} 49. Qf5+ {[%clk 0:01:13.8]} 49... Kg8
{[%clk 0:00:13.5]} 50. e6 {[%clk 0:01:11.1]} 50... Qa7+ {[%clk 0:00:13.3]} 51.
Kc6 {[%clk 0:01:02.3]} 51... Qa4+ {[%clk 0:00:10.1]} 52. Kb7 {[%clk 0:00:54.6]}
52... Qe8 {[%clk 0:00:04.7]} 53. Qd5 {[%clk 0:00:44.8]} 53... Kh7 {[%clk
0:00:03]} 54. Qd7 {[%clk 0:00:40.2]} 54... Qf8 {[%clk 0:00:02.5]} 55. e7 {[%clk
0:00:36.8]} 55... Qf3+ {[%clk 0:00:01.7]} 56. Qc6 {[%clk 0:00:32.6]} 56... Qe3
{[%clk 0:00:01.9]} 57. e8=Q {[%clk 0:00:29.1]} 1-0

[Event "Late-Titled-Tuesday-Blitz-December-26-2023"]
[Site "Chess.com"]
[Date "2023.12.26"]
[Round "2"]
[White "FoxOnTheRun97"]
[Black "Hrant_ChessMood"]
[Result "0-1"]
[WhiteElo "2557"]
[BlackElo "2881"]
[TimeControl "180+1"]
[EndTime "14:18:31 PST"]
[Termination "Hrant_ChessMood won on time"]

1. d4 {[%clk 0:03:00.9]} 1... d5 {[%clk 0:02:58.1]} 2. Bf4 {[%clk 0:03:00.8]}
2... c5 {[%clk 0:02:56.5]} 3. e3 {[%clk 0:03:01]} 3... Nc6 {[%clk 0:02:54.2]} 4.
Nf3 {[%clk 0:03:00.9]} 4... Bg4 {[%clk 0:02:47.4]} 5. Nbd2 {[%clk 0:02:52.3]}
5... e6 {[%clk 0:02:47.3]} 6. c3 {[%clk 0:02:48.9]} 6... Qb6 {[%clk 0:02:41.1]}
7. Qb3 {[%clk 0:02:36.5]} 7... c4 {[%clk 0:02:39.2]} 8. Qxb6 {[%clk 0:02:35.3]}
8... axb6 {[%clk 0:02:40.1]} 9. a3 {[%clk 0:02:35.6]} 9... b5 {[%clk 0:02:40.3]}
10. Rc1 {[%clk 0:02:35.2]} 10... Nf6 {[%clk 0:02:40]} 11. Be2 {[%clk 0:02:34]}
11... Nd7 {[%clk 0:02:36.5]} 12. e4 {[%clk 0:02:20.8]} 12... Nb6 {[%clk
0:02:31.3]} 13. exd5 {[%clk 0:02:18.9]} 13... Nxd5 {[%clk 0:02:29.1]} 14. Bg3
{[%clk 0:02:16.9]} 14... Be7 {[%clk 0:02:27.4]} 15. O-O {[%clk 0:02:14]} 15...
O-O {[%clk 0:02:27.3]} 16. Rfe1 {[%clk 0:02:09.8]} 16... h6 {[%clk 0:02:20.5]}
17. Ne4 {[%clk 0:02:03]} 17... Rfd8 {[%clk 0:02:14.1]} 18. h3 {[%clk 0:01:52.6]}
18... Bf5 {[%clk 0:02:13.9]} 19. Bd1 {[%clk 0:01:49.6]} 19... Rac8 {[%clk
0:01:56.1]} 20. Bc2 {[%clk 0:01:47.4]} 20... Bh7 {[%clk 0:01:47.9]} 21. Ne5
{[%clk 0:01:44.6]} 21... Nxe5 {[%clk 0:01:45.2]} 22. Bxe5 {[%clk 0:01:45]} 22...
Nb6 {[%clk 0:01:41.3]} 23. Nd2 {[%clk 0:01:35.2]} 23... Na4 {[%clk 0:01:38.7]}
24. Bxh7+ {[%clk 0:01:31.2]} 24... Kxh7 {[%clk 0:01:38.8]} 25. Rc2 {[%clk
0:01:31.2]} 25... Rd5 {[%clk 0:01:31.7]} 26. Bg3 {[%clk 0:01:28.2]} 26... Rcd8
{[%clk 0:01:30.7]} 27. Kf1 {[%clk 0:01:26]} 27... Nb6 {[%clk 0:01:27.7]} 28. Nf3
{[%clk 0:01:20.5]} 28... Rc8 {[%clk 0:01:22.2]} 29. Re5 {[%clk 0:01:19.3]} 29...
Rxe5 {[%clk 0:01:21.5]} 30. Nxe5 {[%clk 0:01:19.4]} 30... Kg8 {[%clk 0:01:19.9]}
31. Ke1 {[%clk 0:01:18.3]} 31... Nd5 {[%clk 0:01:20.1]} 32. Kd1 {[%clk
0:01:17.7]} 32... Bd6 {[%clk 0:01:15.8]} 33. Re2 {[%clk 0:01:08.3]} 33... Bxe5
{[%clk 0:01:15.2]} 34. Bxe5 {[%clk 0:01:07.1]} 34... f6 {[%clk 0:01:12.3]} 35.
Bh2 {[%clk 0:01:04.6]} 35... Kf7 {[%clk 0:01:12.7]} 36. g4 {[%clk 0:01:00.5]}
36... h5 {[%clk 0:01:12.1]} 37. Bg3 {[%clk 0:00:52]} 37... Rh8 {[%clk
0:01:11.7]} 38. Re1 {[%clk 0:00:50.8]} 38... g5 {[%clk 0:01:01.6]} 39. Ke2
{[%clk 0:00:47.1]} 39... f5 {[%clk 0:00:48.8]} 40. Be5 {[%clk 0:00:45.2]} 40...
Rh6 {[%clk 0:00:44.3]} 41. f3 {[%clk 0:00:41.2]} 41... hxg4 {[%clk 0:00:41.2]}
42. hxg4 {[%clk 0:00:41.4]} 42... Rh3 {[%clk 0:00:41.9]} 43. gxf5 {[%clk
0:00:39]} 43... exf5 {[%clk 0:00:41.8]} 44. Kf2 {[%clk 0:00:32.3]} 44... f4
{[%clk 0:00:37]} 45. Kg2 {[%clk 0:00:32.4]} 45... Rg3+ {[%clk 0:00:36.8]} 46.
Kf2 {[%clk 0:00:32.3]} 46... Rh3 {[%clk 0:00:37.4]} 47. Kg2 {[%clk 0:00:32.8]}
47... Rh6 {[%clk 0:00:35.1]} 48. Bb8 {[%clk 0:00:28.3]} 48... Ne3+ {[%clk
0:00:34]} 49. Kg1 {[%clk 0:00:26.9]} 49... Rh3 {[%clk 0:00:32.1]} 50. Rb1 {[%clk
0:00:10.6]} 50... Rxf3 {[%clk 0:00:30.4]} 51. b3 {[%clk 0:00:10.8]} 51... cxb3
{[%clk 0:00:22.8]} 52. Rxb3 {[%clk 0:00:10.6]} 52... Rf1+ {[%clk 0:00:22.1]} 53.
Kh2 {[%clk 0:00:10.9]} 53... g4 {[%clk 0:00:22.7]} 54. Bxf4 {[%clk 0:00:05]}
54... Rxf4 {[%clk 0:00:23.6]} 55. Rxb5 {[%clk 0:00:04.3]} 55... Rf3 {[%clk
0:00:20.6]} 56. Rxb7+ {[%clk 0:00:03.7]} 56... Kf6 {[%clk 0:00:21.2]} 0-1

[Event "Late-Titled-Tuesday-Blitz-December-26-2023"]
[Site "Chess.com"]
[Date "2023.12.26"]
[Round "2"]
[White "AyMitecK"]
[Black "Grindaveci"]
[Result "0-1"]
[WhiteElo "2554"]
[BlackElo "2362"]
[TimeControl "180+1"]
[EndTime "14:18:35 PST"]
[Termination "Grindaveci won by checkmate"]

1. e4 {[%clk 0:03:00.9]} 1... e5 {[%clk 0:02:59.1]} 2. Qh5 {[%clk 0:02:57.5]}
2... Nc6 {[%clk 0:02:58.1]} 3. Bc4 {[%clk 0:02:56.6]} 3... g6 {[%clk 0:02:57.8]}
4. Qf3 {[%clk 0:02:55.8]} 4... Nf6 {[%clk 0:02:58.3]} 5. Ne2 {[%clk 0:02:54.8]}
5... Bg7 {[%clk 0:02:49.9]} 6. d3 {[%clk 0:02:51]} 6... h6 {[%clk 0:02:46.6]} 7.
Nbc3 {[%clk 0:02:47.9]} 7... d6 {[%clk 0:02:41.8]} 8. h3 {[%clk 0:02:47.3]} 8...
Qe7 {[%clk 0:02:42]} 9. g4 {[%clk 0:02:47.1]} 9... Be6 {[%clk 0:02:42]} 10. g5
{[%clk 0:02:45.2]} 10... Nh5 {[%clk 0:02:37]} 11. Nd5 {[%clk 0:02:25.1]} 11...
Bxd5 {[%clk 0:02:32.4]} 12. Bxd5 {[%clk 0:02:26]} 12... hxg5 {[%clk 0:02:22]}
13. Bxg5 {[%clk 0:01:24.3]} 13... Qxg5 {[%clk 0:02:04.4]} 14. Qxf7+ {[%clk
0:01:17.2]} 14... Kd8 {[%clk 0:02:04.2]} 15. Rg1 {[%clk 0:01:17]} 15... Qf6
{[%clk 0:01:48.7]} 16. Rxg6 {[%clk 0:01:07]} 16... Qxf7 {[%clk 0:01:47.9]} 17.
Bxf7 {[%clk 0:01:07.9]} 17... Ke7 {[%clk 0:01:23.9]} 18. Bb3 {[%clk 0:01:02.5]}
18... Bf6 {[%clk 0:01:15.7]} 19. O-O-O {[%clk 0:00:57.8]} 19... Na5 {[%clk
0:01:12.4]} 20. Ba4 {[%clk 0:00:42.8]} 20... a6 {[%clk 0:01:00.5]} 21. c3 {[%clk
0:00:25.7]} 21... Rag8 {[%clk 0:00:43.8]} 22. Rg4 {[%clk 0:00:24.2]} 22... Nf4
{[%clk 0:00:37.5]} 23. Ng3 {[%clk 0:00:17.7]} 23... Nxh3 {[%clk 0:00:17.3]} 24.
Nf5+ {[%clk 0:00:16.9]} 24... Kf8 {[%clk 0:00:17.1]} 25. Rxg8+ {[%clk
0:00:12.7]} 25... Rxg8 {[%clk 0:00:17]} 26. f3 {[%clk 0:00:11.6]} 26... Nf4
{[%clk 0:00:16]} 27. Rh1 {[%clk 0:00:10.6]} 27... Nxd3+ {[%clk 0:00:14.5]} 28.
Kd2 {[%clk 0:00:09.3]} 28... Nxb2 {[%clk 0:00:13.9]} 29. Bc2 {[%clk 0:00:08]}
29... Nbc4+ {[%clk 0:00:13.4]} 30. Kc1 {[%clk 0:00:08.9]} 30... Bg5+ {[%clk
0:00:12.2]} 31. Kb1 {[%clk 0:00:09.3]} 31... Na3+ {[%clk 0:00:12.4]} 32. Kb2
{[%clk 0:00:09.1]} 32... N5c4+ {[%clk 0:00:12.9]} 33. Kb3 {[%clk 0:00:09.2]}
33... Nxc2 {[%clk 0:00:13.4]} 34. Kxc2 {[%clk 0:00:10.1]} 34... Ne3+ {[%clk
0:00:13.6]} 35. Nxe3 {[%clk 0:00:09.3]} 35... Bxe3 {[%clk 0:00:14.5]} 36. Rh7
{[%clk 0:00:10.1]} 36... Rg7 {[%clk 0:00:14.8]} 37. Rh8+ {[%clk 0:00:10.8]}
37... Ke7 {[%clk 0:00:15.4]} 38. Rc8 {[%clk 0:00:11.4]} 38... Kd7 {[%clk
0:00:15.8]} 39. Rb8 {[%clk 0:00:12.2]} 39... b6 {[%clk 0:00:15.7]} 40. Kd3
{[%clk 0:00:12.3]} 40... Bc5 {[%clk 0:00:15.6]} 41. Kc4 {[%clk 0:00:13.2]} 41...
a5 {[%clk 0:00:15.7]} 42. Kb5 {[%clk 0:00:13.2]} 42... Rg1 {[%clk 0:00:14.8]}
43. Rh8 {[%clk 0:00:11.7]} 43... Rb1+ {[%clk 0:00:15.1]} 44. Kc4 {[%clk
0:00:12]} 44... b5+ {[%clk 0:00:15.7]} 45. Kd3 {[%clk 0:00:09.5]} 45... Rb2
{[%clk 0:00:15.9]} 46. a4 {[%clk 0:00:09.6]} 46... bxa4 {[%clk 0:00:16.1]} 47.
Kc4 {[%clk 0:00:10]} 47... a3 {[%clk 0:00:16.2]} 48. f4 {[%clk 0:00:10.4]} 48...
a2 {[%clk 0:00:16.7]} 49. Rh7+ {[%clk 0:00:08]} 49... Kc6 {[%clk 0:00:16.6]} 50.
fxe5 {[%clk 0:00:06.3]} 50... a1=Q {[%clk 0:00:15.9]} 51. exd6 {[%clk
0:00:05.1]} 51... Bxd6 {[%clk 0:00:15.8]} 52. Rxc7+ {[%clk 0:00:02.3]} 52...
Bxc7 {[%clk 0:00:14.3]} 53. e5 {[%clk 0:00:03.2]} 53... Qa4+ {[%clk 0:00:14]}
54. Kd3 {[%clk 0:00:04.1]} 54... Qc2+ {[%clk 0:00:13.5]} 55. Kc4 {[%clk
0:00:03.8]} 55... Qe4# {[%clk 0:00:13.9]} 0-1

[Event "Late-Titled-Tuesday-Blitz-December-26-2023"]
[Site "Chess.com"]
[Date "2023.12.26"]
[Round "2"]
[White "SocoLoco"]
[Black "alertakobra"]
[Result "0-1"]
[WhiteElo "2118"]
[BlackElo "2449"]
[TimeControl "180+1"]
[EndTime "14:18:38 PST"]
[Termination "alertakobra won on time"]

1. e4 {[%clk 0:03:00]} 1... c5 {[%clk 0:02:59.8]} 2. c3 {[%clk 0:02:59.8]} 2...
d5 {[%clk 0:02:59.4]} 3. exd5 {[%clk 0:03:00.7]} 3... Qxd5 {[%clk 0:02:59.8]} 4.
d4 {[%clk 0:03:01.2]} 4... Nf6 {[%clk 0:03:00]} 5. Nf3 {[%clk 0:03:01.4]} 5...
Bg4 {[%clk 0:02:59.5]} 6. Be2 {[%clk 0:03:01.9]} 6... e6 {[%clk 0:02:57.8]} 7.
O-O {[%clk 0:03:01.9]} 7... Nc6 {[%clk 0:02:57.7]} 8. h3 {[%clk 0:03:02.2]} 8...
Bh5 {[%clk 0:02:57.5]} 9. Re1 {[%clk 0:03:02.4]} 9... Be7 {[%clk 0:02:56.7]} 10.
Be3 {[%clk 0:03:02.3]} 10... cxd4 {[%clk 0:02:56.5]} 11. cxd4 {[%clk 0:03:03.2]}
11... O-O {[%clk 0:02:56.3]} 12. Nc3 {[%clk 0:03:03.7]} 12... Qd6 {[%clk
0:02:56.5]} 13. a3 {[%clk 0:03:02.4]} 13... Rfd8 {[%clk 0:02:55.1]} 14. Rc1
{[%clk 0:03:02.3]} 14... a6 {[%clk 0:02:47.3]} 15. b4 {[%clk 0:03:01.8]} 15...
Rac8 {[%clk 0:02:35.9]} 16. Na4 {[%clk 0:02:48.5]} 16... Nd5 {[%clk 0:02:25.7]}
17. Nc5 {[%clk 0:02:46.1]} 17... Qb8 {[%clk 0:02:25.2]} 18. Qb3 {[%clk
0:02:07.3]} 18... Nxe3 {[%clk 0:02:05.8]} 19. fxe3 {[%clk 0:02:06.3]} 19... Bg6
{[%clk 0:01:51.2]} 20. Bd3 {[%clk 0:01:56.9]} 20... e5 {[%clk 0:01:32.6]} 21.
Bxg6 {[%clk 0:01:43.7]} 21... hxg6 {[%clk 0:01:31]} 22. d5 {[%clk 0:01:32.5]}
22... Na7 {[%clk 0:01:29.7]} 23. e4 {[%clk 0:01:31.5]} 23... Bd6 {[%clk
0:01:24.4]} 24. Nd3 {[%clk 0:01:20.9]} 24... Nb5 {[%clk 0:01:15.7]} 25. a4
{[%clk 0:01:19.1]} 25... Nd4 {[%clk 0:01:12]} 26. Nxd4 {[%clk 0:01:19.1]} 26...
exd4 {[%clk 0:01:12.9]} 27. Rxc8 {[%clk 0:01:13.1]} 27... Rxc8 {[%clk
0:01:12.8]} 28. e5 {[%clk 0:01:08]} 28... Rc3 {[%clk 0:01:10.5]} 29. Qd1 {[%clk
0:01:07.8]} 29... Bf8 {[%clk 0:01:04.2]} 30. Nc5 {[%clk 0:01:05.7]} 30... Bxc5
{[%clk 0:00:43.1]} 31. bxc5 {[%clk 0:01:06.6]} 31... Rxc5 {[%clk 0:00:42.5]} 32.
Qxd4 {[%clk 0:01:06]} 32... Qc8 {[%clk 0:00:41]} 33. d6 {[%clk 0:00:58.2]} 33...
Rc1 {[%clk 0:00:32.4]} 34. Rxc1 {[%clk 0:00:55.9]} 34... Qxc1+ {[%clk
0:00:31.6]} 35. Kh2 {[%clk 0:00:56.6]} 35... Qc8 {[%clk 0:00:26.4]} 36. d7
{[%clk 0:00:55.7]} 36... Qd8 {[%clk 0:00:26.6]} 37. Qd6 {[%clk 0:00:56.1]} 37...
b5 {[%clk 0:00:19.4]} 38. axb5 {[%clk 0:00:53.4]} 38... axb5 {[%clk 0:00:20.3]}
39. e6 {[%clk 0:00:53.4]} 39... fxe6 {[%clk 0:00:20.2]} 40. Qxe6+ {[%clk
0:00:53.5]} 40... Kf8 {[%clk 0:00:20.6]} 41. Qd6+ {[%clk 0:00:41.3]} 41... Kf7
{[%clk 0:00:20.4]} 42. Qd5+ {[%clk 0:00:40.7]} 42... Ke7 {[%clk 0:00:20.6]} 43.
Qxb5 {[%clk 0:00:40.5]} 43... Qxd7 {[%clk 0:00:20.6]} 44. Qxd7+ {[%clk
0:00:37.5]} 44... Kxd7 {[%clk 0:00:21.5]} 45. Kg3 {[%clk 0:00:37.6]} 45... Ke6
{[%clk 0:00:21.9]} 46. Kg4 {[%clk 0:00:35.5]} 46... Kf6 {[%clk 0:00:22.1]} 47.
Kf4 {[%clk 0:00:35.6]} 47... g5+ {[%clk 0:00:20.2]} 48. Kg4 {[%clk 0:00:35.2]}
48... Kg6 {[%clk 0:00:20.7]} 49. g3 {[%clk 0:00:34.6]} 49... Kf6 {[%clk
0:00:08.7]} 50. Kh5 {[%clk 0:00:15.9]} 50... Kf5 {[%clk 0:00:08.9]} 51. g4+
{[%clk 0:00:11]} 51... Kf6 {[%clk 0:00:05.8]} 52. h4 {[%clk 0:00:06.1]} 52...
g6+ {[%clk 0:00:05.9]} 53. Kh6 {[%clk 0:00:06]} 53... gxh4 {[%clk 0:00:06.4]}
0-1

[Event "Late-Titled-Tuesday-Blitz-December-26-2023"]
[Site "Chess.com"]
[Date "2023.12.26"]
[Round "2"]
[White "Maect19"]
[Black "SnekkerAndersen"]
[Result "1-0"]
[WhiteElo "2362"]
[BlackElo "2559"]
[TimeControl "180+1"]
[EndTime "14:18:40 PST"]
[Termination "Maect19 won on time"]

1. Nf3 {[%clk 0:03:00.9]} 1... c6 {[%clk 0:02:59.3]} 2. c4 {[%clk 0:02:59.1]}
2... d5 {[%clk 0:03:00.2]} 3. e3 {[%clk 0:02:59.2]} 3... Nf6 {[%clk 0:03:00.6]}
4. Nc3 {[%clk 0:02:59.3]} 4... g6 {[%clk 0:03:01.2]} 5. b3 {[%clk 0:02:59.6]}
5... Bg7 {[%clk 0:03:01]} 6. Bb2 {[%clk 0:03:00.1]} 6... O-O {[%clk 0:03:01.7]}
7. Be2 {[%clk 0:03:00]} 7... Ne4 {[%clk 0:03:01.7]} 8. Qc2 {[%clk 0:02:58]} 8...
Nxc3 {[%clk 0:03:01.3]} 9. Bxc3 {[%clk 0:02:57]} 9... Bxc3 {[%clk 0:03:01.6]}
10. Qxc3 {[%clk 0:02:57.3]} 10... Nd7 {[%clk 0:03:01.3]} 11. d4 {[%clk
0:02:56.8]} 11... Nf6 {[%clk 0:03:01.5]} 12. Nd2 {[%clk 0:02:53.9]} 12... Qd6
{[%clk 0:02:59.6]} 13. O-O {[%clk 0:02:53.1]} 13... Bg4 {[%clk 0:02:59.9]} 14.
f3 {[%clk 0:02:41.6]} 14... Bf5 {[%clk 0:02:58.2]} 15. Bd3 {[%clk 0:02:41.3]}
15... Bxd3 {[%clk 0:02:57.5]} 16. Qxd3 {[%clk 0:02:42.2]} 16... e5 {[%clk
0:02:57.9]} 17. Rad1 {[%clk 0:02:25.6]} 17... Rfe8 {[%clk 0:02:54.1]} 18. Rfe1
{[%clk 0:02:21.2]} 18... Rad8 {[%clk 0:02:50.7]} 19. c5 {[%clk 0:02:13.3]} 19...
Qc7 {[%clk 0:02:42.2]} 20. Re2 {[%clk 0:02:07.6]} 20... exd4 {[%clk 0:02:37.2]}
21. exd4 {[%clk 0:02:07.3]} 21... Rxe2 {[%clk 0:02:35.7]} 22. Qxe2 {[%clk
0:02:08.2]} 22... Re8 {[%clk 0:02:33.2]} 23. Qf2 {[%clk 0:02:07.9]} 23... Qa5
{[%clk 0:02:26.5]} 24. Nf1 {[%clk 0:02:06.7]} 24... Nh5 {[%clk 0:02:22]} 25. g3
{[%clk 0:02:03.7]} 25... f5 {[%clk 0:02:15.5]} 26. Qd2 {[%clk 0:02:02.1]} 26...
Qa6 {[%clk 0:02:00]} 27. Qd3 {[%clk 0:01:58.1]} 27... Qxa2 {[%clk 0:01:54.3]}
28. Rd2 {[%clk 0:01:52.9]} 28... Qa1 {[%clk 0:01:49.8]} 29. Rd1 {[%clk
0:01:41.6]} 29... Qa5 {[%clk 0:01:48.9]} 30. Rd2 {[%clk 0:01:26.9]} 30... Kf7
{[%clk 0:01:46]} 31. Re2 {[%clk 0:01:26.5]} 31... Rxe2 {[%clk 0:01:45.2]} 32.
Qxe2 {[%clk 0:01:27.4]} 32... Qc3 {[%clk 0:01:43.7]} 33. Qe5 {[%clk 0:01:27.1]}
33... Qxf3 {[%clk 0:01:29.6]} 34. Qc7+ {[%clk 0:01:26.1]} 34... Kg8 {[%clk
0:01:27.3]} 35. Qc8+ {[%clk 0:01:13.3]} 35... Kg7 {[%clk 0:01:26.8]} 36. Qxb7+
{[%clk 0:01:13.5]} 36... Kh6 {[%clk 0:01:27]} 37. Qxc6 {[%clk 0:01:12.6]} 37...
Qe4 {[%clk 0:01:24.2]} 38. Qa4 {[%clk 0:01:02.8]} 38... Nf6 {[%clk 0:00:57]} 39.
Qb4 {[%clk 0:00:57.6]} 39... Qe6 {[%clk 0:00:19.2]} 40. Qd2+ {[%clk 0:00:54]}
40... g5 {[%clk 0:00:14.7]} 41. b4 {[%clk 0:00:47.6]} 41... a6 {[%clk 0:00:13]}
42. Qe3 {[%clk 0:00:38]} 42... Ne4 {[%clk 0:00:12.6]} 43. Nd2 {[%clk 0:00:35]}
43... Qc6 {[%clk 0:00:12.4]} 44. Nf3 {[%clk 0:00:32.7]} 44... Qa4 {[%clk
0:00:07.7]} 45. Qe1 {[%clk 0:00:22.4]} 45... Qb3 {[%clk 0:00:07.4]} 46. Ne5
{[%clk 0:00:19.9]} 46... Qb2 {[%clk 0:00:05.8]} 47. Nf7+ {[%clk 0:00:18.4]}
47... Kg6 {[%clk 0:00:03.8]} 48. Ne5+ {[%clk 0:00:18.6]} 48... Kf6 {[%clk
0:00:04.1]} 49. Qe3 {[%clk 0:00:18.4]} 49... Qb1+ {[%clk 0:00:03.8]} 50. Kg2
{[%clk 0:00:18.1]} 50... Qc2+ {[%clk 0:00:03.5]} 51. Kf1 {[%clk 0:00:13.8]}
51... Qb1+ {[%clk 0:00:02.7]} 52. Qe1 {[%clk 0:00:13.9]} 52... Qb2 {[%clk
0:00:02.1]} 53. c6 {[%clk 0:00:12.5]} 53... Qxd4 {[%clk 0:00:01.8]} 54. Nd7+
{[%clk 0:00:11.4]} 1-0